Cogmind - Beta 17 @@@ ROGUE MODE // 2026.07.07 @ 18:31:27 Player: kite Result: Self-destructed Performance ------------- Evolutions (1) 500 Regions Visited (5) 1000 Robots Destroyed (57) 285 Value Destroyed (1351) 1351 Prototype IDs (2) 40 Alien Tech Used (0) 0 Bonus (-12) -12 TOTAL SCORE: 3164 Bonus ------- Friendly Fire -12 Cogmind --------- Core Integrity 311/400 Matter 291/300 Energy 140/140 System Corruption 1% Temperature Cool (0) Movement Treading (160) Location -9/Exiles Parts ------- > --- POWER (1) -------- Light Deuterium Engine > --- PROPULSION (3) --- Light Treads Light Treads Light Treads > --- UTILITY (3) ------ Large Storage Unit Improved Targeting Computer Light Armor Plating > --- WEAPON (2) ------- Improved Assault Rifle Improved Assault Rifle > --- INVENTORY (15) --- Improved Ion Engine Light Treads Light Treads Light Treads Large Storage Unit Light Armor Plating Hacking Suite System Shield Light EM Pulse Cannon Light Assault Rifle Light Assault Rifle Heavy Assault Rifle Heavy Assault Rifle Rocket Launcher Mini Grenade Launcher Peak State ------------ > --- POWER ------------ Improved Ion Engine > --- PROPULSION ------- Aluminum Leg Aluminum Leg Aluminum Leg > --- UTILITY ---------- Large Storage Unit Reaction Control System Reactive Plating > --- WEAPON ----------- Improved Assault Rifle Improved Assault Rifle > --- INVENTORY -------- Improved Ion Engine Light Nuclear Core Aluminum Leg Large Storage Unit Medium Matter Pod Reaction Control System Reaction Control System Light Armor Plating Beam Rifle Light EM Pulse Cannon Light Assault Rifle Heavy Assault Rifle Mini Grenade Launcher Mini Grenade Launcher [Rating: 20] Favorites ----------- Power Improved Ion Engine Engine Improved Ion Engine Propulsion Light Treads Treads Light Treads Leg Aluminum Leg Utility Large Storage Unit Device Reaction Control System Storage Large Storage Unit Processor Targeting Computer Hackware System Shield Protection Light Armor Plating Weapon Improved Assault Rifle Energy Gun EM Shotgun Ballistic Gun Improved Assault Rifle Ballistic Cannon Light Cannon Launcher Mini Grenade Launcher Build | -11 -10 -10 -9 -9 -9 ------- Run | Yrd Mat Min Mat Min Exi Slots Evolved 2 | . . . 2 . . Power . | . . . . . . Propulsion 1 | . . . 1 . . Utility 1 | . . . 1 . . Weapon . | . . . . . . Parts Attached 43 | 4 7 2 30 . . Power 3 | 1 1 . 1 . . Engine 3 | 1 1 . 1 . . Core . | . . . . . . Reactor . | . . . . . . Propulsion 13 | 2 . 2 9 . . Treads 9 | 2 . . 7 . . Leg 4 | . . 2 2 . . Wheel . | . . . . . . Hover . | . . . . . . Flight . | . . . . . . Utility 14 | 1 2 . 11 . . Device 1 | . . . 1 . . Storage 3 | 1 1 . 1 . . Processor 3 | . 1 . 2 . . Hackware 1 | . . . 1 . . Protection 6 | . . . 6 . . Artifact . | . . . . . . Weapon 13 | . 4 . 9 . . Energy Gun 3 | . . . 3 . . Energy Cannon . | . . . . . . Ballistic Gun 6 | . 2 . 4 . . Ballistic Cannon 3 | . 2 . 1 . . Launcher 1 | . . . 1 . . Special Weapon . | . . . . . . Impact Weapon . | . . . . . . Slashing Weapon . | . . . . . . Piercing Weapon . | . . . . . . Special Melee Weapon . | . . . . . . Unidentified Prototypes 2 | . . . 2 . . Parts Lost 6 | . . 2 4 . . Power . | . . . . . . Propulsion 3 | . . 2 1 . . Utility 1 | . . . 1 . . Weapon 2 | . . . 2 . . Highest Loss Streak 2 | . . 2 1 . . To Critical Strikes . | . . . . . . Average Backups 13 | 3 10 14 14 15 15 Power 1 | . 1 3 1 1 1 Propulsion 2 | 1 2 3 2 3 3 Utility 2 | . . 2 4 4 4 Weapon 6 | 1 6 6 6 7 7 Tool/Special . | . . . . . . Unused Backups 28 | . 4 . 11 . 13 Power 3 | . . . 2 . 1 Propulsion 3 | . . . . . 3 Utility 8 | . . . 4 . 4 Weapon 14 | . 4 . 5 . 5 Tool/Special . | . . . . . . Average Slot Usage (%) 98 | . 96 99 99 100 100 Engine 12 | . 14 14 11 11 11 Treads 27 | . 28 26 27 33 33 Leg 3 | . . 1 5 . . Storage 12 | . 14 14 11 11 11 Processor 9 | . 11 14 7 11 11 Hackware 1 | . . . 2 . . Protection 6 | . . . 11 11 11 Ballistic Gun 19 | . 11 28 20 22 22 Ballistic Cannon 3 | . 15 . . . . Peak Build Rating 20 | 4 12 12 20 18 18 Average Rating 14 | 3 8 11 17 18 18 On Entrance 10 | . 4 12 12 18 18 Avg Prop Armor Cover (%) 6 | . . . 6 . . Naked Turns . | . . . . . . Heaviest Build 46 | 10 33 33 46 34 34 Greatest Support 60 | 40 40 40 60 60 60 Greatest Overweight (x) 2 | . . 1 2 . . Average Overweight (x) . | . . . . . . Largest Inventory Capacity 15 | 8 15 15 15 15 15 Average Capacity 14 | 7 14 15 15 15 15 Most Carried 15 | 6 15 15 15 15 15 Average Carried 13 | 3 10 14 14 15 15 Final Capacity 15 | 8 15 15 15 15 15 Final Carried 15 | 6 15 13 15 15 15 Class Distribution -------------------- 57% | Mutant 42% | Scavenger-Mutant Dominant Class ---------------- Mutant | -10/Materials Mutant | -10/Mines Scavenger-Mutant | -9/Materials Scavenger-Mutant | -9/Mines Scavenger-Mutant | -9/Exiles Resources | -11 -10 -10 -9 -9 -9 ----------- Run | Yrd Mat Min Mat Min Exi Matter Collected 1766 | 100 344 399 923 . . Remotely . | . . . . . . Salvage Created 1721 | . 337 228 1156 . . Parts 116 | . 26 3 87 . . Haulers Intercepted 2 | . . . 2 . . Recyclers Shooed 1 | . . . 1 . . Parts Field Recycled . | . . . . . . Retrieved Matter . | . . . . . . Parts Self-Destructed . | . . . . . . Prevented . | . . . . . . Parts Restored . | . . . . . . Kills | -11 -10 -10 -9 -9 -9 ------- Run | Yrd Mat Min Mat Min Exi Combat Hostiles Destroyed 51 | . 12 12 27 . . Guns 40 | . 4 12 24 . . Cannons 8 | . 8 . . . . AOE 3 | . . . 3 . . Classes Destroyed 11 | . 4 2 5 . . Worker 1 | . 1 . . . . Builder 3 | . 1 . 2 . . Hauler 2 | . . . 2 . . Recycler 2 | . . . 2 . . Operator 1 | . . . 1 . . Watcher 4 | . . . 4 . . Swarmer 18 | . 5 . 13 . . Grunt 15 | . 7 3 5 . . Sentry 9 | . . . 9 . . Demolisher 2 | . . 2 . . . Assembled 8 | . . 8 . . . Best Kill Streak 8 | . 3 8 5 . . Combat Bots Only 8 | . 3 8 4 . . Max Kills in Single Turn 2 | . 2 2 2 . . Gunslinging 1 | . . . 1 . . Exploded 2 | . . . 2 . . Melee . | . . . . . . Uniques/NPCs Destroyed . | . . . . . . Combat | -11 -10 -10 -9 -9 -9 -------- Run | Yrd Mat Min Mat Min Exi Hostile Shots Fired 208 | . 50 30 128 . . Missed 57 | . 13 6 38 . . Hits 151 | . 37 24 90 . . Melee 5 | . . 5 . . . Projectile 146 | . 37 19 90 . . AOE 7 | . . 7 . . . Critical Strikes 1 | . . . 1 . . Part Disruptions 2 | . . 2 . . . Damage Taken 1955 | . 417 550 988 . . Core 318 | . 74 155 89 . . Absorbed by Shields . | . . . . . . Ignored by Resistances 60 | . . . 60 . . Core Remaining (%) 54 | 100 . 8 . . . Volleys Fired 139 | . 30 25 84 . . Largest 2 | . 2 2 2 . . Hottest 90 | . 60 46 90 . . Shots Fired 273 | . 60 50 163 . . Gun 223 | . 16 50 157 . . Cannon 48 | . 44 . 4 . . Launcher 2 | . . . 2 . . Special . | . . . . . . Kinetic 267 | . 60 50 157 . . Thermal . | . . . . . . Explosive 2 | . . . 2 . . Electromagnetic 4 | . . . 4 . . Robot Hit Streak 28 | . 7 4 28 . . Robot Miss Streak 5 | . 3 5 5 . . Penetration Max . | . . . . . . Secondary Targets 5 | . 1 1 3 . . Max Gunslinging Chain 1 | . 1 1 1 . . Shots Hit Robots 177 | . 37 38 102 . . Core Hits 102 | . 18 29 55 . . Critical Kills . | . . . . . . Critical Parts Destroyed . | . . . . . . Critical Strikes 2 | . 2 . . . . Blast 2 | . 2 . . . . Melee Attacks . | . . . . . . Impact . | . . . . . . Slashing . | . . . . . . Piercing . | . . . . . . Sneak Attacks . | . . . . . . Combat Hostiles . | . . . . . . Follow-up Attacks . | . . . . . . Damage Inflicted 2834 | . 594 506 1734 . . Guns 2249 | . 186 506 1557 . . Cannons 442 | . 408 . 34 . . Explosions 143 | . . . 143 . . Melee . | . . . . . . Ramming . | . . . . . . Kinetic 2665 | . 594 506 1565 . . Thermal . | . . . . . . Explosive 143 | . . . 143 . . Electromagnetic 26 | . . . 26 . . Impact . | . . . . . . Slashing . | . . . . . . Piercing . | . . . . . . Highest Corruption 1 | . . . 1 1 1 Average Corruption 1 | . . . 1 1 1 Corruption Purged . | . . . . . . Corruption Blocked . | . . . . . . Effects 17 | . . . 15 1 1 Message Errors 4 | . . . 3 . 1 Matter Fused 7 | . . . 6 1 . Heat Flow Errors 1 | . . . 1 . . Energy Discharges 2 | . . . 2 . . Data Loss (minor) 1 | . . . 1 . . Weapon Failures 2 | . . . 2 . . Overload Shots . | . . . . . . Overflow Damage 22 | . . . 22 . . Projectiles . | . . . . . . Explosions 22 | . . . 22 . . Melee . | . . . . . . Knockbacks 7 | . 7 . . . . Impact . | . . . . . . Kinetic 7 | . 7 . . . . Secondary . | . . . . . . Self-Inflicted Damage . | . . . . . . Shots . | . . . . . . Rammed . | . . . . . . Targets Rammed . | . . . . . . Kicked . | . . . . . . Crushed . | . . . . . . Highest Temperature 164 | . 48 16 164 . . Average Temperature 22 | . 23 8 22 . . Received Heat Transfer 521 | . 183 86 252 . . Siege Activations . | . . . . . . Martial Activations . | . . . . . . Shielding Activations . | . . . . . . Robots Disrupted . | . . . . . . Combat Hostiles . | . . . . . . Robots Corrupted . | . . . . . . Combat Hostiles . | . . . . . . Parts Fried . | . . . . . . Impact Corruptions . | . . . . . . Robots Melted . | . . . . . . Combat Hostiles . | . . . . . . Parts Melted 1 | . . 1 . . . Heat Transferred . | . . . . . . Parts Sabotaged . | . . . . . . Parts Stolen . | . . . . . . Parts Stripped . | . . . . . . Power Chain Reactions . | . . . . . . Alert | -11 -10 -10 -9 -9 -9 ------- Run | Yrd Mat Min Mat Min Exi Maximum Alert Level 1 | . . . 1 . . Low Security (%) 89 | 100 100 100 80 100 . Level 1 10 | . . . 19 . . Level 2 . | . . . . . . Level 3 . | . . . . . . Level 4 . | . . . . . . Level 5 . | . . . . . . High Security . | . . . . . . Max Security . | . . . . . . Peak Influence 253 | . 91 63 253 95 . Initial 95 | . . 9 12 95 . Average 75 | . 30 8 116 85 . Influence Increases 1199 | . 312 113 774 . . Destroy 0b10 Robot/C 860 | . 240 80 540 . . Destroy 0b10 Robot/NC 65 | . 10 . 55 . . Destroy Leader 212 | . 40 20 152 . . Allied During Kill 13 | . . 13 . . . Successful Hack 5 | . 5 . . . . Disable Machine 30 | . 15 . 15 . . Destroy Structure 14 | . 2 . 12 . . Influence Decreases 1199 | . 287 106 561 170 75 Entered New Map 261 | . . 16 20 150 75 Time Decay 893 | . 287 67 519 20 . Lost Part 32 | . . 10 22 . . Lost Ally 13 | . . 13 . . . Squads Dispatched 1 | . 1 . . . . Investigation 1 | . 1 . . . . Extermination . | . . . . . . Reinforcement . | . . . . . . Assault . | . . . . . . Garrison . | . . . . . . Intercept . | . . . . . . Searches Triggered . | . . . . . . Construction Impeded . | . . . . . . Haulers Reinforced . | . . . . . . Active Scanning Responses . | . . . . . . Cargo Convoy Interrupts . | . . . . . . Stealth | -11 -10 -10 -9 -9 -9 --------- Run | Yrd Mat Min Mat Min Exi Distress Signals 4 | . 1 1 2 . . Communications Jammed . | . . . . . . Distress Signals . | . . . . . . Times Spotted 69 | . 14 17 38 . . Peak Tracking Total 5 | . 3 5 4 . . Tactical Retreats 1 | . . 1 . . . Traps | -11 -10 -10 -9 -9 -9 ------- Run | Yrd Mat Min Mat Min Exi Traps Triggered 2 | . 1 . 1 . . Indirectly . | . . . . . . Trap Hack Attempts . | . . . . . . Triggered . | . . . . . . Disarmed . | . . . . . . Reprogrammed . | . . . . . . Reused . | . . . . . . Traps Extracted . | . . . . . . Installed . | . . . . . . Triggered . | . . . . . . Machines | -11 -10 -10 -9 -9 -9 ---------- Run | Yrd Mat Min Mat Min Exi Machines Disabled 3 | . 2 . 1 . . Max in Single Turn 1 | . 1 . 1 . . Machines Repaired . | . . . . . . Machines Dismantled . | . . . . . . Machines Sabotaged . | . . . . . . Overloaded Fab Kills . | . . . . . . Hacking | -11 -10 -10 -9 -9 -9 --------- Run | Yrd Mat Min Mat Min Exi Machines Accessed 6 | . 3 . 3 . . Terminals 5 | . 3 . 2 . . Fabricators . | . . . . . . Repair Stations . | . . . . . . Recycling Units . | . . . . . . Scanalyzers 1 | . . . 1 . . Garrison Access . | . . . . . . Total Hacks 13 | . 9 . 4 . . Successful 7 | . 4 . 3 . . Failed 6 | . 5 . 1 . . Catastrophic 1 | . 1 . . . . Database Lockouts . | . . . . . . Manual 13 | . 9 . 4 . . Terminals 12 | . 9 . 3 . . Fabricators . | . . . . . . Repair Stations . | . . . . . . Recycling Units . | . . . . . . Scanalyzers 1 | . . . 1 . . Garrison Access . | . . . . . . Terminal Hacks 2 | . 1 . 1 . . Part Schematic 1 | . 1 . . . . Branch Access Points 1 | . . . 1 . . Fabricator Hacks . | . . . . . . Repair Station Hacks . | . . . . . . Recycling Unit Hacks . | . . . . . . Scanalyzer 1 | . . . 1 . . Retrieve Study 1 | . . . 1 . . Garrison Access Hacks . | . . . . . . Unauthorized Hacks 4 | . 3 . 1 . . Terminals 4 | . 3 . 1 . . Botnet 4 | . 3 . 1 . . Fabricators . | . . . . . . Repair Stations . | . . . . . . Recycling Units . | . . . . . . Scanalyzers . | . . . . . . Garrison Access . | . . . . . . Data Cores Recovered 1 | . . . 1 . . Used . | . . . . . . Hacking Detections 3 | . 2 . 1 . . Full Trace Events . | . . . . . . Feedback Events . | . . . . . . Feedback Blocked . | . . . . . . Robot Schematics Acquired . | . . . . . . Robots Built . | . . . . . . Authchips . | . . . . . . Time . | . . . . . . Total Robot Build Rating . | . . . . . . Part Schematics Acquired 1 | . 1 . . . . Parts Built . | . . . . . . Authchips . | . . . . . . Time . | . . . . . . Total Part Build Rating . | . . . . . . Part Studies Acquired 1 | . . . 1 . . Parts Repaired . | . . . . . . Time . | . . . . . . Parts Recycled . | . . . . . . Recycled Matter . | . . . . . . Retrieved Matter . | . . . . . . Retrieved Components . | . . . . . . Parts Scanalyzed . | . . . . . . Part Schematics Acquired . | . . . . . . Parts Damaged . | . . . . . . Bothacking | -11 -10 -10 -9 -9 -9 ------------ Run | Yrd Mat Min Mat Min Exi Used RIF Installer . | . . . . . . Robots Hacked . | . . . . . . Non-combat . | . . . . . . Combat . | . . . . . . Robot Hacks Applied . | . . . . . . Relay Couplers Released . | . . . . . . Fabnet Peak Effective % . | . . . . . . Robots Rewired . | . . . . . . Allies Hacked . | . . . . . . Hacks Repelled . | . . . . . . Allies | -11 -10 -10 -9 -9 -9 -------- Run | Yrd Mat Min Mat Min Exi Total Allies 4 | . . 4 . . . Largest Group 4 | . . 4 . . . Highest-Rated Group 71 | . . 71 . . . Highest-Rated Ally 31 | . . 31 . . . Total Orders . | . . . . . . Ally Attacks 36 | . . 36 . . . Total Damage 275 | . . 275 . . . Kills 6 | . . 6 . . . Allies Corrupted . | . . . . . . Allies Melted . | . . . . . . Intel | -11 -10 -10 -9 -9 -9 ------- Run | Yrd Mat Min Mat Min Exi Active Infowar (turns) . | . . . . . . Robot Analysis Total . | . . . . . . Derelict Logs Recovered . | . . . . . . Drone Launches . | . . . . . . Drone Recoveries . | . . . . . . Exploration | -11 -10 -10 -9 -9 -9 ------------- Run | Yrd Mat Min Mat Min Exi Turns Passed 3612 | 73 827 550 1938 55 169 Spaces Moved 1849 | 41 438 289 941 35 105 Core 3 | 3 . . . . . Treads 1744 | 38 438 280 848 35 105 Legs 102 | . . 9 93 . . Wheels . | . . . . . . Hover . | . . . . . . Flight . | . . . . . . Fastest Speed 50 | 50 160 160 120 160 160 Average Speed 162 | 151 160 161 164 160 160 Slowest Speed 320 | 160 160 240 320 160 160 Overloaded Moves . | . . . . . . Propulsion Burnouts . | . . . . . . Robots Hopped . | . . . . . . Potential Cave-ins . | . . . . . . Cave-ins Triggered . | . . . . . . Exploration Rate (%) 44 | 4 62 69 82 7 41 Regions Visited 5 Branch Regions 3 Pre-discovered Areas . | . . . . . . Known Exits Taken 1 | . . . 1 . . Unknown Exits Taken 4 | 1 1 1 . 1 . Scrap Searched 2 | . . 1 . 1 . Spaces Dug . | . . . . . . Terrain Destroyed 6 | . . . 6 . . Melee . | . . . . . . Projectile . | . . . . . . AOE 6 | . . . 6 . . Terrain Rammed . | . . . . . . Walls Destroyed . | . . . . . . Machines Disabled . | . . . . . . Actions | -11 -10 -10 -9 -9 -9 --------- Run | Yrd Mat Min Mat Min Exi Total 2199 | 50 505 324 1181 34 105 Wait 70 | . 10 7 53 . . Move 1844 | 40 437 288 940 34 105 Hop . | . . . . . . Pick Up 42 | 6 13 1 22 . . Fast Attach 33 | 4 6 . 23 . . Attach 12 | . . 2 10 . . Detach 4 | . . . 4 . . Swap 6 | . 1 . 5 . . Drop 49 | . 8 1 40 . . Fire 139 | . 30 25 84 . . Melee . | . . . . . . Ram . | . . . . . . Kick . | . . . . . . Crush . | . . . . . . Escape Stasis . | . . . . . . Rewire . | . . . . . . Trap . | . . . . . . Miscellaneous . | . . . . . . Route ------- -11/Scrapyard -10/Materials (discovered 3 exits: *Mat x2 / [*Min]) -10/Mines -9/Materials (discovered 5 exits: *Mat x3 / *Min x2) -9/Mines -9/Exiles (discovered 1 exit: [*Min]) History --------- Turn | Location | Event 6 | -11/Scrapyard | Discovered new exit (range 14) 74 | -11/Scrapyard | Entered Materials 119 | -10/Materials | Discovered new exit (range 16) 308 | -10/Materials | Build established: Mutant 456 | -10/Materials | Discovered new exit (range 15) 736 | -10/Materials | Discovered new exit (range 10) 901 | -10/Materials | Entered Mines 902 | -10/Mines | Assembled infested the area 902 | -10/Mines | Met a Derelict testing a Signal Generator 1012 | -10/Mines | Assisted by bots powering up and referring to "LRC-V3" 1217 | -10/Mines | Received a Rocket Launcher from a helpful Derelict 1223 | -10/Mines | Core integrity fell below 50% 1259 | -10/Mines | Destroyed 8 combat bots 1269 | -10/Mines | Lost 3 allies 1427 | -10/Mines | Core integrity fell below 20% 1441 | -10/Mines | Discovered new exit (range 6) 1451 | -10/Mines | Entered Materials 1451 | -9/Materials | Evolved 2 slots: Propulsion x1, Utility x1 2211 | -9/Materials | Discovered new exit (range 5) 2295 | -9/Materials | Discovered new exit (range 15) 2645 | -9/Materials | Build established: Scavenger-Mutant 2709 | -9/Materials | Discovered new exit (range 10) 2769 | -9/Materials | Identified exit to Materials 2994 | -9/Materials | Discovered exit to Materials (range 12) 3217 | -9/Materials | Identified exit to Mines 3389 | -9/Materials | Entered Mines 3437 | -9/Mines | Deemed a non-threat by the Exiles lab entrance 3437 | -9/Mines | Discovered new exit (range 5) 3444 | -9/Mines | Entered Exiles 3444 | -9/Exiles | Found Exiles lab abandoned 3469 | -9/Exiles | Discovered new exit (range 15) 3613 | -9/Exiles | Self-destructed Last Messages --------------- 03378_ Acquired 37 matter. 03379_ System corrupted: Matter fused (-8). 03379_ Acquired 8 matter. 03379_ K-01 Serf cleans the Integration Channel. LOCATION=MINES GOAL=ESCAPE Something is scanning the area. 03397_ Searching scrap... 03397_ Found Hrd. Light Armor Plating. 03397_ Found Mining Claw. 03397_ Found Hcp. Matter Pod. 03397_ Found 49 Matter. 03437_ "No threat detected, you may enter." 03437_ EXIT=FOUND 03444_ System corrupted: Matter fused (-9). LOCATION=UNKNOWN GOAL=ESCAPE 03469_ EXIT=FOUND 03539_ 6PNF HAILDXD6 /QDTZGETVA6POBG